[Event "Titled Tuesday Blitz June 8 2021"]
[White "Harutjunyan, Gevorg"]
[Black "Grandelius, Nils"]
[WhiteFideId "13300873"]
[BlackFideId "1710400"]
[WhiteElo "2498"]
[BlackElo "2651"]
[Result "0-1"]
[Round "09"]
[TimeControl "180+1"]
[Date "2021.06.08"]
[WhiteClock "0:00:13"]
[BlackClock "0:00:31"]

1. e4 {[%clk 0:03:00]}  e5 {[%clk 0:02:59]} 2. Nf3 {[%clk 0:03:00]}  Nc6 {[%clk 0:03:00]} 3. d4 {[%clk 0:03:00]}  exd4 {[%clk 0:02:59]} 4. Nxd4 {[%clk 0:03:01]}  Qf6 {[%clk 0:02:59]} 5. Nxc6 {[%clk 0:02:58]}  dxc6 {[%clk 0:02:56]} 6. Bc4 {[%clk 0:02:55]}  Bd6 {[%clk 0:02:45]} 7. Nd2 {[%clk 0:02:11]}  Qg6 {[%clk 0:01:58]} 8. Qf3 {[%clk 0:02:03]}  Nf6 {[%clk 0:01:50]} 9. h3 {[%clk 0:01:58]}  Nd7 {[%clk 0:01:47]} 10. Bb3 {[%clk 0:01:40]}  Ne5 {[%clk 0:01:46]} 11. Qe3 {[%clk 0:01:29]}  Qxg2 {[%clk 0:01:43]} 12. Rf1 {[%clk 0:01:13]}  Bxh3 {[%clk 0:01:43]} 13. f4 {[%clk 0:01:02]}  Ng4 {[%clk 0:01:29]} 14. Qf3 {[%clk 0:01:00]}  Bc5 {[%clk 0:01:24]} 15. e5 {[%clk 0:00:40]}  Rd8 {[%clk 0:01:12]} 16. Ne4 {[%clk 0:00:30]}  Bf2+ {[%clk 0:00:32]} 17. Rxf2 {[%clk 0:00:26]}  Qg1+ {[%clk 0:00:32]} 18. Rf1 {[%clk 0:00:21]}  Bxf1 {[%clk 0:00:32]} 19. Qg3 {[%clk 0:00:13]}  Bg2+ {[%clk 0:00:31]} 0-1


[Site "https://www.chess.com"]

[Event "Titled Tuesday Blitz June 8 2021"]
[White "Holt, Conrad"]
[Black "Kollars, Dmitrij"]
[WhiteFideId "2034387"]
[BlackFideId "12909572"]
[WhiteElo "2586"]
[BlackElo "2576"]
[Result "0-1"]
[Round "09"]
[TimeControl "180+1"]
[Date "2021.06.08"]
[WhiteClock "0:00:01"]
[BlackClock "0:00:09"]

1. d4 {[%clk 0:03:00]}  Nf6 {[%clk 0:02:58]} 2. c4 {[%clk 0:03:00]}  e6 {[%clk 0:02:59]} 3. Nc3 {[%clk 0:03:01]}  Bb4 {[%clk 0:02:59]} 4. Qc2 {[%clk 0:03:01]}  O-O {[%clk 0:02:57]} 5. e4 {[%clk 0:03:02]}  d6 {[%clk 0:02:56]} 6. a3 {[%clk 0:03:01]}  Bxc3+ {[%clk 0:02:54]} 7. bxc3 {[%clk 0:03:02]}  c5 {[%clk 0:02:49]} 8. e5 {[%clk 0:03:01]}  dxe5 {[%clk 0:02:46]} 9. dxe5 {[%clk 0:03:02]}  Nfd7 {[%clk 0:02:45]} 10. Nf3 {[%clk 0:03:02]}  Nc6 {[%clk 0:02:45]} 11. Bf4 {[%clk 0:03:01]}  Qc7 {[%clk 0:02:32]} 12. Be2 {[%clk 0:02:55]}  Ndxe5 {[%clk 0:02:29]} 13. Nxe5 {[%clk 0:02:55]}  Nxe5 {[%clk 0:02:30]} 14. Bg3 {[%clk 0:02:50]}  Bd7 {[%clk 0:02:24]} 15. O-O {[%clk 0:02:46]}  f6 {[%clk 0:02:20]} 16. Bd3 {[%clk 0:02:43]}  h6 {[%clk 0:02:14]} 17. Rfe1 {[%clk 0:02:38]}  Bc6 {[%clk 0:02:13]} 18. Be4 {[%clk 0:02:22]}  Rad8 {[%clk 0:01:53]} 19. Bxc6 {[%clk 0:02:03]}  Qxc6 {[%clk 0:01:54]} 20. Bxe5 {[%clk 0:02:04]}  fxe5 {[%clk 0:01:55]} 21. Rxe5 {[%clk 0:02:04]}  Qd6 {[%clk 0:01:41]} 22. Rae1 {[%clk 0:01:59]}  Qd2 {[%clk 0:01:41]} 23. Qxd2 {[%clk 0:01:57]}  Rxd2 {[%clk 0:01:42]} 24. f3 {[%clk 0:01:56]}  Rc2 {[%clk 0:01:21]} 25. Rxc5 {[%clk 0:01:54]}  Rd8 {[%clk 0:01:14]} 26. Kh1 {[%clk 0:01:33]}  Rdd2 {[%clk 0:01:10]} 27. Rg1 {[%clk 0:01:31]}  Rxc3 {[%clk 0:01:10]} 28. Rc8+ {[%clk 0:01:21]}  Kh7 {[%clk 0:01:10]} 29. Rc7 {[%clk 0:01:18]}  Rb2 {[%clk 0:01:09]} 30. h4 {[%clk 0:01:09]}  Rxa3 {[%clk 0:01:05]} 31. Kh2 {[%clk 0:00:49]}  Rc3 {[%clk 0:00:59]} 32. Kg3 {[%clk 0:00:46]}  Rcc2 {[%clk 0:00:55]} 33. Kh3 {[%clk 0:00:37]}  a5 {[%clk 0:00:52]} 34. Ra1 {[%clk 0:00:30]}  b6 {[%clk 0:00:33]} 35. c5 {[%clk 0:00:26]}  bxc5 {[%clk 0:00:30]} 36. Rxa5 {[%clk 0:00:11]}  Rxg2 {[%clk 0:00:30]} 37. Raxc5 {[%clk 0:00:09]}  Rh2+ {[%clk 0:00:30]} 38. Kg3 {[%clk 0:00:09]}  Rbg2+ {[%clk 0:00:31]} 39. Kf4 {[%clk 0:00:10]}  Rxh4+ {[%clk 0:00:32]} 40. Ke3 {[%clk 0:00:10]}  Rh1 {[%clk 0:00:28]} 41. Re7 {[%clk 0:00:08]}  Re1+ {[%clk 0:00:28]} 42. Kd3 {[%clk 0:00:07]}  Rf2 {[%clk 0:00:25]} 43. Rf7 {[%clk 0:00:07]}  Rg2 {[%clk 0:00:19]} 44. Rc6 {[%clk 0:00:07]}  Rg6 {[%clk 0:00:18]} 45. Rf8 {[%clk 0:00:06]}  Rf6 {[%clk 0:00:16]} 46. Kd2 {[%clk 0:00:06]}  Rxf8 {[%clk 0:00:15]} 47. Kxe1 {[%clk 0:00:06]}  Rxf3 {[%clk 0:00:16]} 48. Rxe6 {[%clk 0:00:07]}  Rf6 {[%clk 0:00:16]} 49. Re5 {[%clk 0:00:07]}  g5 {[%clk 0:00:16]} 50. Ke2 {[%clk 0:00:06]}  Kg6 {[%clk 0:00:17]} 51. Re8 {[%clk 0:00:06]}  h5 {[%clk 0:00:17]} 52. Rg8+ {[%clk 0:00:07]}  Kf5 {[%clk 0:00:16]} 53. Kf3 {[%clk 0:00:07]}  h4 {[%clk 0:00:14]} 54. Rg7 {[%clk 0:00:07]}  Rb6 {[%clk 0:00:13]} 55. Rf7+ {[%clk 0:00:06]}  Kg6 {[%clk 0:00:14]} 56. Rc7 {[%clk 0:00:06]}  Rb3+ {[%clk 0:00:13]} 57. Kg2 {[%clk 0:00:05]}  Kh5 {[%clk 0:00:14]} 58. Rc5 {[%clk 0:00:04]}  h3+ {[%clk 0:00:14]} 59. Kh2 {[%clk 0:00:04]}  Kh4 {[%clk 0:00:14]} 60. Rc8 {[%clk 0:00:03]}  Rb2+ {[%clk 0:00:13]} 61. Kh1 {[%clk 0:00:04]}  g4 {[%clk 0:00:13]} 62. Rc4 {[%clk 0:00:03]}  Rf2 {[%clk 0:00:11]} 63. Rd4 {[%clk 0:00:02]}  Re2 {[%clk 0:00:10]} 64. Kg1 {[%clk 0:00:02]}  Rb2 {[%clk 0:00:09]} 65. Kh1 {[%clk 0:00:02]}  Kg3 {[%clk 0:00:09]} 66. Rd3+ {[%clk 0:00:02]}  Kf4 {[%clk 0:00:09]} 67. Rd4+ {[%clk 0:00:02]}  Kf3 {[%clk 0:00:09]} 68. Rd3+ {[%clk 0:00:02]}  Ke4 {[%clk 0:00:09]} 69. Ra3 {[%clk 0:00:01]}  Re2 {[%clk 0:00:09]} 70. Kg1 {[%clk 0:00:01]}  Kf4 {[%clk 0:00:09]} 0-1


[Site "https://www.chess.com"]

[Event "Titled Tuesday Blitz June 8 2021"]
[White "Ibarra Jerez, Jose Carlos"]
[Black "Arabidze, Meri"]
[WhiteFideId "2226332"]
[BlackFideId "13604040"]
[WhiteElo "2602"]
[BlackElo "2432"]
[Result "1-0"]
[Round "09"]
[TimeControl "180+1"]
[Date "2021.06.08"]
[WhiteClock "0:00:05"]
[BlackClock "0:00:08"]

1. e4 {[%clk 0:03:00]}  c5 {[%clk 0:03:00]} 2. Nc3 {[%clk 0:02:59]}  Nc6 {[%clk 0:02:59]} 3. Nf3 {[%clk 0:02:56]}  e6 {[%clk 0:02:59]} 4. d4 {[%clk 0:02:56]}  cxd4 {[%clk 0:02:59]} 5. Nxd4 {[%clk 0:02:56]}  a6 {[%clk 0:03:00]} 6. g3 {[%clk 0:02:54]}  Nf6 {[%clk 0:02:59]} 7. Bg2 {[%clk 0:02:54]}  Qc7 {[%clk 0:03:00]} 8. O-O {[%clk 0:02:53]}  Bc5 {[%clk 0:03:00]} 9. Nxc6 {[%clk 0:02:50]}  dxc6 {[%clk 0:03:01]} 10. e5 {[%clk 0:02:50]}  Qxe5 {[%clk 0:02:58]} 11. Bf4 {[%clk 0:02:50]}  Qd4 {[%clk 0:02:56]} 12. Qe2 {[%clk 0:02:49]}  Be7 {[%clk 0:02:48]} 13. Rad1 {[%clk 0:02:48]}  Qb6 {[%clk 0:02:36]} 14. Na4 {[%clk 0:02:47]}  Qa5 {[%clk 0:02:31]} 15. b3 {[%clk 0:02:40]}  O-O {[%clk 0:02:26]} 16. c4 {[%clk 0:02:37]}  Nd7 {[%clk 0:02:06]} 17. Bd6 {[%clk 0:02:24]}  Bxd6 {[%clk 0:02:02]} 18. Rxd6 {[%clk 0:02:24]}  Nc5 {[%clk 0:01:41]} 19. Qe5 {[%clk 0:02:00]}  Nxb3 {[%clk 0:01:41]} 20. Qxa5 {[%clk 0:02:00]}  Nxa5 {[%clk 0:01:41]} 21. Nb6 {[%clk 0:02:01]}  Rb8 {[%clk 0:01:37]} 22. Re1 {[%clk 0:01:54]}  e5 {[%clk 0:01:34]} 23. Rxe5 {[%clk 0:01:53]}  Be6 {[%clk 0:01:34]} 24. Rxa5 {[%clk 0:01:52]}  Rbd8 {[%clk 0:01:28]} 25. Rxd8 {[%clk 0:01:00]}  Rxd8 {[%clk 0:01:28]} 26. Bf3 {[%clk 0:00:59]}  Rd2 {[%clk 0:01:20]} 27. Kg2 {[%clk 0:00:51]}  g6 {[%clk 0:01:21]} 28. Ra3 {[%clk 0:00:49]}  Kg7 {[%clk 0:01:18]} 29. h4 {[%clk 0:00:43]}  h5 {[%clk 0:01:17]} 30. Ra4 {[%clk 0:00:21]}  Rc2 {[%clk 0:01:14]} 31. a3 {[%clk 0:00:21]}  Rc3 {[%clk 0:01:09]} 32. Ra5 {[%clk 0:00:16]}  Bxc4 {[%clk 0:01:06]} 33. Nxc4 {[%clk 0:00:15]}  Rxc4 {[%clk 0:01:06]} 34. Re5 {[%clk 0:00:15]}  Kf6 {[%clk 0:01:03]} 35. Re8 {[%clk 0:00:14]}  Rc3 {[%clk 0:00:58]} 36. Rb8 {[%clk 0:00:14]}  b5 {[%clk 0:00:45]} 37. Rb6 {[%clk 0:00:13]}  Rxa3 {[%clk 0:00:46]} 38. Rxc6+ {[%clk 0:00:13]}  Ke5 {[%clk 0:00:42]} 39. Rc7 {[%clk 0:00:11]}  Ke6 {[%clk 0:00:41]} 40. Rb7 {[%clk 0:00:10]}  Ra1 {[%clk 0:00:23]} 41. Bc6 {[%clk 0:00:10]}  f6 {[%clk 0:00:21]} 42. Be8 {[%clk 0:00:09]}  Kf5 {[%clk 0:00:17]} 43. Re7 {[%clk 0:00:09]}  g5 {[%clk 0:00:13]} 44. Bxh5 {[%clk 0:00:06]}  gxh4 {[%clk 0:00:14]} 45. gxh4 {[%clk 0:00:07]}  Ra4 {[%clk 0:00:14]} 46. Kg3 {[%clk 0:00:06]}  b4 {[%clk 0:00:14]} 47. Rb7 {[%clk 0:00:06]}  a5 {[%clk 0:00:14]} 48. Bg4+ {[%clk 0:00:06]}  Ke5 {[%clk 0:00:13]} 49. h5 {[%clk 0:00:06]}  Ra1 {[%clk 0:00:13]} 50. h6 {[%clk 0:00:05]}  Rh1 {[%clk 0:00:13]} 51. Bh3 {[%clk 0:00:05]}  Rg1+ {[%clk 0:00:12]} 52. Bg2 {[%clk 0:00:06]}  Rd1 {[%clk 0:00:10]} 53. Rb5+ {[%clk 0:00:05]}  Kd4 {[%clk 0:00:08]} 54. Rd5+ {[%clk 0:00:05]} 1-0


[Site "https://www.chess.com"]

[Event "Titled Tuesday Blitz June 8 2021"]
[White "Kamsky, Gata"]
[Black "Bortnyk, Olexandr"]
[WhiteFideId "2000024"]
[BlackFideId "14120828"]
[WhiteElo "2644"]
[BlackElo "2723"]
[Result "1-0"]
[Round "09"]
[TimeControl "180+1"]
[Date "2021.06.08"]
[WhiteClock "0:00:20"]
[BlackClock "0:00:02"]

1. d4 {[%clk 0:03:00]}  Nf6 {[%clk 0:02:58]} 2. Nf3 {[%clk 0:03:01]}  d6 {[%clk 0:02:58]} 3. Bf4 {[%clk 0:02:58]}  g6 {[%clk 0:02:53]} 4. h3 {[%clk 0:02:58]}  Bg7 {[%clk 0:02:52]} 5. c3 {[%clk 0:02:59]}  O-O {[%clk 0:02:49]} 6. Nbd2 {[%clk 0:02:59]}  c5 {[%clk 0:02:47]} 7. dxc5 {[%clk 0:02:58]}  dxc5 {[%clk 0:02:40]} 8. e4 {[%clk 0:02:59]}  Nc6 {[%clk 0:02:37]} 9. Be2 {[%clk 0:02:59]}  e5 {[%clk 0:02:27]} 10. Nxe5 {[%clk 0:02:49]}  Nxe5 {[%clk 0:02:28]} 11. Bxe5 {[%clk 0:02:49]}  Re8 {[%clk 0:02:20]} 12. Bh2 {[%clk 0:02:36]}  Qe7 {[%clk 0:01:22]} 13. O-O {[%clk 0:02:25]}  Nxe4 {[%clk 0:01:16]} 14. Nxe4 {[%clk 0:02:25]}  Qxe4 {[%clk 0:01:17]} 15. Bb5 {[%clk 0:02:23]}  Rf8 {[%clk 0:01:14]} 16. Re1 {[%clk 0:02:23]}  Qh4 {[%clk 0:01:09]} 17. Qd5 {[%clk 0:02:16]}  a6 {[%clk 0:01:01]} 18. Bf1 {[%clk 0:02:13]}  Be6 {[%clk 0:00:56]} 19. Qxb7 {[%clk 0:02:11]}  Rad8 {[%clk 0:00:49]} 20. Bg3 {[%clk 0:01:58]}  Qg5 {[%clk 0:00:43]} 21. Rad1 {[%clk 0:01:55]}  a5 {[%clk 0:00:34]} 22. Qb5 {[%clk 0:01:50]}  Rxd1 {[%clk 0:00:21]} 23. Rxd1 {[%clk 0:01:50]}  h5 {[%clk 0:00:19]} 24. Qxa5 {[%clk 0:01:48]}  h4 {[%clk 0:00:17]} 25. Bd6 {[%clk 0:01:47]}  Rc8 {[%clk 0:00:14]} 26. Kh1 {[%clk 0:01:36]}  Bf6 {[%clk 0:00:11]} 27. Qa4 {[%clk 0:01:30]}  Rd8 {[%clk 0:00:08]} 28. Bc7 {[%clk 0:01:19]}  Rd2 {[%clk 0:00:05]} 29. Rxd2 {[%clk 0:00:55]}  Qxd2 {[%clk 0:00:06]} 30. Qf4 {[%clk 0:00:53]}  Qe1 {[%clk 0:00:02]} 31. Qxf6 {[%clk 0:00:49]}  Qxf1+ {[%clk 0:00:03]} 32. Kh2 {[%clk 0:00:49]}  Qd1 {[%clk 0:00:02]} 33. Be5 {[%clk 0:00:48]}  Kf8 {[%clk 0:00:02]} 34. Qh8+ {[%clk 0:00:48]}  Ke7 {[%clk 0:00:02]} 35. Bf6+ {[%clk 0:00:49]}  Kd6 {[%clk 0:00:03]} 36. Qd8+ {[%clk 0:00:48]}  Bd7 {[%clk 0:00:03]} 37. Qb8+ {[%clk 0:00:47]}  Kc6 {[%clk 0:00:02]} 38. Bxh4 {[%clk 0:00:45]}  Qa4 {[%clk 0:00:01]} 39. Bg3 {[%clk 0:00:44]}  Be6 {[%clk 0:00:01]} 40. Qc7+ {[%clk 0:00:44]}  Kd5 {[%clk 0:00:01]} 41. b3 {[%clk 0:00:43]}  Qxa2 {[%clk 0:00:02]} 42. c4+ {[%clk 0:00:41]}  Kd4 {[%clk 0:00:01]} 43. Qe5+ {[%clk 0:00:41]}  Kd3 {[%clk 0:00:01]} 44. Qxc5 {[%clk 0:00:40]}  Qxb3 {[%clk 0:00:02]} 45. Qd6+ {[%clk 0:00:37]}  Kxc4 {[%clk 0:00:02]} 46. Be5 {[%clk 0:00:37]}  Qb5 {[%clk 0:00:03]} 47. Qd4+ {[%clk 0:00:37]}  Kb3 {[%clk 0:00:03]} 48. Qc3+ {[%clk 0:00:37]}  Ka2 {[%clk 0:00:03]} 49. f3 {[%clk 0:00:37]}  Bc4 {[%clk 0:00:03]} 50. h4 {[%clk 0:00:35]}  Be6 {[%clk 0:00:03]} 51. g4 {[%clk 0:00:31]}  Qe2+ {[%clk 0:00:03]} 52. Kg3 {[%clk 0:00:31]}  Kb1 {[%clk 0:00:03]} 53. h5 {[%clk 0:00:30]}  gxh5 {[%clk 0:00:02]} 54. gxh5 {[%clk 0:00:30]}  Bf5 {[%clk 0:00:03]} 55. h6 {[%clk 0:00:28]}  Bh7 {[%clk 0:00:03]} 56. Qa1+ {[%clk 0:00:25]}  Kc2 {[%clk 0:00:03]} 57. Qc3+ {[%clk 0:00:22]}  Kd1 {[%clk 0:00:03]} 58. Bf4 {[%clk 0:00:20]}  Qe1+ {[%clk 0:00:03]} 59. Qxe1+ {[%clk 0:00:20]}  Kxe1 {[%clk 0:00:04]} 60. Be5 {[%clk 0:00:19]}  Ke2 {[%clk 0:00:05]} 61. f4 {[%clk 0:00:19]}  Ke3 {[%clk 0:00:02]} 62. Kg4 {[%clk 0:00:19]}  Ke4 {[%clk 0:00:02]} 63. Kg5 {[%clk 0:00:20]} 1-0


[Site "https://www.chess.com"]

[Event "Titled Tuesday Blitz June 8 2021"]
[White "Khusnutdinov, Rustam"]
[Black "Nguyen, Quoc Hy"]
[WhiteFideId "13701703"]
[BlackFideId "12410853"]
[WhiteElo "2571"]
[BlackElo "1975"]
[Result "1-0"]
[Round "09"]
[TimeControl "180+1"]
[Date "2021.06.08"]
[WhiteClock "0:00:08"]
[BlackClock "0:00:06"]

1. d4 {[%clk 0:01:50]}  d5 {[%clk 0:02:54]} 2. c4 {[%clk 0:01:49]}  c6 {[%clk 0:02:53]} 3. Nf3 {[%clk 0:01:50]}  Nf6 {[%clk 0:02:53]} 4. Nc3 {[%clk 0:01:50]}  e6 {[%clk 0:02:53]} 5. e3 {[%clk 0:01:50]}  Nbd7 {[%clk 0:02:52]} 6. Be2 {[%clk 0:01:50]}  Bd6 {[%clk 0:02:51]} 7. O-O {[%clk 0:01:50]}  O-O {[%clk 0:02:50]} 8. b3 {[%clk 0:01:50]}  b6 {[%clk 0:02:49]} 9. Bb2 {[%clk 0:01:51]}  Bb7 {[%clk 0:02:49]} 10. Qc2 {[%clk 0:01:52]}  Qe7 {[%clk 0:02:48]} 11. Rad1 {[%clk 0:01:51]}  Rac8 {[%clk 0:02:46]} 12. Rfe1 {[%clk 0:01:51]}  Rfd8 {[%clk 0:02:46]} 13. Bf1 {[%clk 0:01:49]}  h6 {[%clk 0:02:44]} 14. e4 {[%clk 0:01:46]}  dxe4 {[%clk 0:02:44]} 15. Nxe4 {[%clk 0:01:47]}  Nxe4 {[%clk 0:02:44]} 16. Qxe4 {[%clk 0:01:48]}  Nf6 {[%clk 0:02:42]} 17. Qh4 {[%clk 0:01:48]}  Nh7 {[%clk 0:02:34]} 18. Qxe7 {[%clk 0:01:30]}  Bxe7 {[%clk 0:02:35]} 19. g3 {[%clk 0:01:12]}  c5 {[%clk 0:02:12]} 20. Bg2 {[%clk 0:01:05]}  Bxf3 {[%clk 0:01:52]} 21. Bxf3 {[%clk 0:01:06]}  Bf6 {[%clk 0:01:53]} 22. h4 {[%clk 0:01:03]}  cxd4 {[%clk 0:01:49]} 23. Re4 {[%clk 0:01:01]}  e5 {[%clk 0:01:49]} 24. Bg4 {[%clk 0:00:57]}  Rb8 {[%clk 0:01:41]} 25. Kg2 {[%clk 0:00:50]}  Nf8 {[%clk 0:01:37]} 26. f4 {[%clk 0:00:48]}  exf4 {[%clk 0:01:32]} 27. Rxf4 {[%clk 0:00:49]}  Ne6 {[%clk 0:01:28]} 28. Re4 {[%clk 0:00:30]}  Nc5 {[%clk 0:01:16]} 29. Rf4 {[%clk 0:00:30]}  Ne6 {[%clk 0:01:11]} 30. Re4 {[%clk 0:00:30]}  Nc5 {[%clk 0:01:09]} 31. Rf4 {[%clk 0:00:30]}  Be5 {[%clk 0:01:06]} 32. Rf5 {[%clk 0:00:30]}  f6 {[%clk 0:01:06]} 33. h5 {[%clk 0:00:31]}  Ne4 {[%clk 0:01:01]} 34. Bf3 {[%clk 0:00:27]}  Nc3 {[%clk 0:01:01]} 35. Rd2 {[%clk 0:00:26]}  Rbc8 {[%clk 0:00:57]} 36. Kf1 {[%clk 0:00:17]}  b5 {[%clk 0:00:56]} 37. cxb5 {[%clk 0:00:17]}  Nxb5 {[%clk 0:00:56]} 38. Be2 {[%clk 0:00:17]}  Nc3 {[%clk 0:00:52]} 39. Bc4+ {[%clk 0:00:17]}  Kh8 {[%clk 0:00:50]} 40. Rf3 {[%clk 0:00:17]}  Nxa2 {[%clk 0:00:47]} 41. Bxd4 {[%clk 0:00:17]}  Rxd4 {[%clk 0:00:45]} 42. Rxa2 {[%clk 0:00:17]}  Rc7 {[%clk 0:00:38]} 43. Ra6 {[%clk 0:00:17]}  Rd8 {[%clk 0:00:32]} 44. Re6 {[%clk 0:00:16]}  Rb8 {[%clk 0:00:28]} 45. Rd3 {[%clk 0:00:15]}  Rcc8 {[%clk 0:00:26]} 46. Kg2 {[%clk 0:00:15]}  a5 {[%clk 0:00:25]} 47. Ra6 {[%clk 0:00:14]}  Ra8 {[%clk 0:00:24]} 48. Rxa8 {[%clk 0:00:14]}  Rxa8 {[%clk 0:00:24]} 49. g4 {[%clk 0:00:15]}  Kh7 {[%clk 0:00:22]} 50. Bf7 {[%clk 0:00:15]}  Kh8 {[%clk 0:00:21]} 51. Kf3 {[%clk 0:00:15]}  Rb8 {[%clk 0:00:19]} 52. Ke4 {[%clk 0:00:15]}  Ra8 {[%clk 0:00:19]} 53. Kf5 {[%clk 0:00:14]}  Kh7 {[%clk 0:00:18]} 54. Rd7 {[%clk 0:00:13]}  Rb8 {[%clk 0:00:18]} 55. Bc4 {[%clk 0:00:12]}  Rc8 {[%clk 0:00:16]} 56. Ke6 {[%clk 0:00:12]}  a4 {[%clk 0:00:16]} 57. Bd3+ {[%clk 0:00:12]}  Kg8 {[%clk 0:00:15]} 58. bxa4 {[%clk 0:00:13]}  Ra8 {[%clk 0:00:12]} 59. Bb5 {[%clk 0:00:12]}  Re8+ {[%clk 0:00:11]} 60. Kf5 {[%clk 0:00:12]}  Bc3 {[%clk 0:00:10]} 61. Kg6 {[%clk 0:00:12]}  f5 {[%clk 0:00:09]} 62. Bc4+ {[%clk 0:00:11]}  Kh8 {[%clk 0:00:08]} 63. gxf5 {[%clk 0:00:11]}  Ra8 {[%clk 0:00:08]} 64. Be6 {[%clk 0:00:09]}  Rf8 {[%clk 0:00:07]} 65. Bf7 {[%clk 0:00:08]}  Ra8 {[%clk 0:00:06]} 66. Rc7 {[%clk 0:00:08]}  Ra6+ {[%clk 0:00:05]} 67. Be6 {[%clk 0:00:08]}  Ra8 {[%clk 0:00:06]} 68. Rxc3 {[%clk 0:00:08]} 1-0


[Site "https://www.chess.com"]

[Event "Titled Tuesday Blitz June 8 2021"]
[White "Moroni, Luca Jr"]
[Black "Demchenko, Anton"]
[WhiteFideId "865834"]
[BlackFideId "4160258"]
[WhiteElo "2491"]
[BlackElo "2593"]
[Result "0-1"]
[Round "09"]
[TimeControl "180+1"]
[Date "2021.06.08"]
[WhiteClock "0:00:03"]
[BlackClock "0:00:55"]

1. d4 {[%clk 0:02:57]}  Nf6 {[%clk 0:03:00]} 2. c4 {[%clk 0:02:55]}  d6 {[%clk 0:03:00]} 3. Nf3 {[%clk 0:02:53]}  Nc6 {[%clk 0:03:00]} 4. d5 {[%clk 0:02:47]}  Ne5 {[%clk 0:02:59]} 5. Nxe5 {[%clk 0:02:41]}  dxe5 {[%clk 0:03:00]} 6. Nc3 {[%clk 0:02:42]}  e6 {[%clk 0:03:01]} 7. g3 {[%clk 0:02:37]}  Bc5 {[%clk 0:02:59]} 8. Bg2 {[%clk 0:02:35]}  O-O {[%clk 0:03:00]} 9. O-O {[%clk 0:02:34]}  h6 {[%clk 0:02:51]} 10. Qc2 {[%clk 0:02:26]}  exd5 {[%clk 0:02:46]} 11. cxd5 {[%clk 0:02:22]}  a6 {[%clk 0:02:44]} 12. a3 {[%clk 0:02:15]}  Bd7 {[%clk 0:02:38]} 13. b4 {[%clk 0:02:13]}  Bd6 {[%clk 0:02:38]} 14. Bb2 {[%clk 0:02:13]}  a5 {[%clk 0:02:36]} 15. b5 {[%clk 0:01:48]}  b6 {[%clk 0:02:34]} 16. a4 {[%clk 0:01:48]}  Qe7 {[%clk 0:02:34]} 17. Rac1 {[%clk 0:01:40]}  Rae8 {[%clk 0:02:32]} 18. e3 {[%clk 0:01:38]}  Bc8 {[%clk 0:02:24]} 19. Ne4 {[%clk 0:01:26]}  Nxe4 {[%clk 0:02:24]} 20. Qxe4 {[%clk 0:01:26]}  f5 {[%clk 0:02:24]} 21. Qd3 {[%clk 0:01:16]}  Bd7 {[%clk 0:02:23]} 22. f4 {[%clk 0:01:12]}  exf4 {[%clk 0:01:54]} 23. exf4 {[%clk 0:01:13]}  Qe3+ {[%clk 0:01:54]} 24. Qxe3 {[%clk 0:01:12]}  Rxe3 {[%clk 0:01:55]} 25. Be5 {[%clk 0:01:02]}  Rxe5 {[%clk 0:01:51]} 26. fxe5 {[%clk 0:01:03]}  Bxe5 {[%clk 0:01:51]} 27. Rfe1 {[%clk 0:00:40]}  Bd6 {[%clk 0:01:51]} 28. Rc4 {[%clk 0:00:40]}  Rf7 {[%clk 0:01:43]} 29. Bh3 {[%clk 0:00:37]}  g6 {[%clk 0:01:42]} 30. Kg2 {[%clk 0:00:37]}  h5 {[%clk 0:01:41]} 31. Kg1 {[%clk 0:00:37]}  Kg7 {[%clk 0:01:39]} 32. Bg2 {[%clk 0:00:37]}  Kf6 {[%clk 0:01:39]} 33. Rc2 {[%clk 0:00:37]}  g5 {[%clk 0:01:37]} 34. Rf1 {[%clk 0:00:36]}  g4 {[%clk 0:01:36]} 35. Re1 {[%clk 0:00:34]}  Kg5 {[%clk 0:01:33]} 36. Rce2 {[%clk 0:00:32]}  h4 {[%clk 0:01:32]} 37. gxh4+ {[%clk 0:00:31]}  Kxh4 {[%clk 0:01:33]} 38. Re6 {[%clk 0:00:22]}  Kg5 {[%clk 0:01:29]} 39. Bf1 {[%clk 0:00:19]}  Rh7 {[%clk 0:01:28]} 40. R1e2 {[%clk 0:00:17]}  Bxe6 {[%clk 0:01:26]} 41. dxe6 {[%clk 0:00:17]}  f4 {[%clk 0:01:26]} 42. Rd2 {[%clk 0:00:14]}  f3 {[%clk 0:01:22]} 43. Bd3 {[%clk 0:00:13]}  Re7 {[%clk 0:01:21]} 44. Bc4 {[%clk 0:00:13]}  Kf5 {[%clk 0:01:15]} 45. Kf1 {[%clk 0:00:10]}  Ke4 {[%clk 0:01:12]} 46. Bb3 {[%clk 0:00:06]}  Ke3 {[%clk 0:01:09]} 47. Rc2 {[%clk 0:00:05]}  Rh7 {[%clk 0:01:07]} 48. Rc3+ {[%clk 0:00:03]}  Kf4 {[%clk 0:00:59]} 49. Rc4+ {[%clk 0:00:03]}  Kg5 {[%clk 0:01:00]} 50. Rc2 {[%clk 0:00:03]}  Kf6 {[%clk 0:00:57]} 51. Kg1 {[%clk 0:00:03]}  Bc5+ {[%clk 0:00:55]} 52. Kh1 {[%clk 0:00:03]}  g3 {[%clk 0:00:55]} 0-1


[Site "https://www.chess.com"]